bitfinex/quotes_ETHUSD_20240926
["timestamp","ask_amount","ask_price","bid_price","bid_amount"]
[1727356506724,4.62374,2637.6,2637.2,0.87587585]
[1727356507024,7.58247,2637.7,2637.2,4.66775585]
[1727356508368,3.7912,2637.7,2637.2,4.66775585]
[1727356508529,3.79134,2637.6,2637.2,4.66775585]
[1727356508730,3.79134,2637.6,2637.2,0.87587585]
[1727356509759,7.58274,2637.6,2637.2,0.87587585]
[1727356510169,3.79134,2637.6,2637.2,0.87587585]
[1727356510944,3.79138,2637.6,2637.2,0.87587585]
[1727356512154,3.79097,2637.9,2637.5,0.7833]
[1727356512531,3.79097,2637.9,2637.6,0.06323971]
[1727356513761,7.58196,2637.9,2637.6,0.06323971]
[1727356514436,3.79097,2637.9,2637.6,0.06323971]
[1727356514743,3.79103,2637.8,2637.6,0.06323971]
[1727356516587,3.79097,2637.9,2637.6,0.06323971]
[1727356516743,3.7907,2638.1,2637.7,0.7997]
[1727356516940,3.7909,2637.9,2637.7,0.86081055]
[1727356518989,3.79061,2638.1,2637.8,1.8672018]
[1727356519142,3.7677,2638.2,2637.8,1.8672018]
[1727356519143,6.79048,2638.2,2637.8,1.8672018]
[1727356519346,6.79048,2638.2,2637.9,0.06043549]
[1727356519772,6.79048,2638.2,2637.7,4.5908]
[1727356520050,3.7906,2638.1,2637.7,1.82463618]
[1727356520248,3.7906,2638.1,2637.8,0.06053362]
[1727356520585,3.7906,2638.1,2637.7,0.7997]
[1727356520889,3.7906,2638.1,2637.8,0.06047877]
[1727356521094,3.7906,2638.1,2637.7,0.7997]
[1727356521247,3.7906,2638.1,2637.9,0.06038064]
[1727356521573,3.7906,2638.1,2637.7,0.7997]
[1727356521759,3.7906,2638.1,2638.0,0.06028251]
[1727356521957,3.7906,2638.1,2637.7,0.7997]
[1727356522159,3.7906,2638.1,2638.0,0.06028251]
[1727356522373,3.7906,2638.1,2637.7,0.7997]
[1727356522581,3.7906,2638.1,2638.0,0.06028251]
[1727356522802,3.7906,2638.1,2637.7,0.7997]
[1727356523271,0.7533,2638.1,2637.8,0.06048376]
[1727356523480,3.79101,2637.9,2637.5,0.7823]
[1727356523778,3.79075,2638.0,2637.4,3.7915]
[1727356523779,3.79075,2638.0,2637.9,0.06038562]
[1727356523994,4.92299,2638.1,2637.4,0.8165]
[1727356523995,3.79114,2637.8,2637.4,0.8165]
[1727356524992,3.79114,2637.8,2637.4,4.6081]
[1727356526310,3.79114,2637.8,2637.4,0.8165]
[1727356527425,3.79114,2637.8,2637.4,4.60805]
[1727356529579,3.79076,2638.0,2637.5,3.79146]
[1727356529580,3.79093,2637.9,2637.5,3.79146]
[1727356530526,3.79093,2637.9,2637.4,4.60808]
[1727356533694,3.79093,2637.9,2637.5,3.79143]
[1727356536396,0.7533,2638.1,2637.5,3.79143]
[1727356536397,4.54393,2638.1,2637.5,3.79143]
[1727356536731,3.79077,2638.0,2637.6,3.7913]
[1727356537701,3.79077,2638.0,2637.5,5.6586318]
[1727356537702,4.55944,2638.4,2637.9,5.6579918]
[1727356538014,3.78951,2638.9,2638.4,4.60868]
[1727356538213,4.55859,2639.0,2638.5,1.8672018]
[1727356538416,4.55859,2639.0,2638.5,1.92690403]
[1727356538617,3.78917,2639.1,2638.7,1.8672018]
[1727356538945,3.7892,2639.1,2638.8,0.05926841]
[1727356539103,3.7892,2639.1,2638.7,1.8672018]
[1727356539297,3.7892,2639.1,2638.9,0.05917035]
[1727356539545,4.6682032,2639.1,2638.7,1.8672018]
[1727356539836,3.7892,2639.1,2639.0,0.0590723]
[1727356540041,3.78931,2639.0,2638.7,1.8672018]
[1727356540426,3.78931,2639.0,2638.5,11.62047852]
[1727356540624,4.62192,2639.2,2638.7,3.78974]
[1727356541069,3.78924,2639.1,2638.8,0.8317]
[1727356543543,3.78924,2639.1,2638.5,9.07444637]
[1727356543544,3.78924,2639.1,2638.6,0.7577]
[1727356543720,3.78924,2639.1,2638.6,5.90978964]
[1727356547050,3.78931,2639.0,2638.6,5.90978964]
[1727356547263,3.78932,2639.0,2638.6,5.90977964]
[1727356547469,3.78932,2639.0,2638.6,0.7577]
[1727356547671,3.78966,2638.8,2638.6,0.7577]
[1727356547828,3.78966,2638.8,2638.4,4.5899]
[1727356548331,7.57877,2639.0,2638.4,4.5899]
[1727356548531,3.78949,2638.9,2638.4,4.5899]
[1727356548758,3.78949,2638.9,2638.5,3.79002]
[1727356551137,3.78932,2639.0,2638.5,7.57999]
[1727356551351,3.78932,2639.0,2638.5,3.78997]
[1727356551553,3.78932,2639.0,2638.5,7.5799]
[1727356552171,3.78932,2639.0,2638.6,3.78986]
[1727356552887,3.78932,2639.0,2638.7,0.05856905]
[1727356554201,3.64940588,2639.0,2638.7,0.05856905]
[1727356554550,4.62188,2639.2,2638.7,3.84822905]
[1727356554755,3.78894,2639.3,2638.8,4.59672]
[1727356554974,0.8012,2639.4,2638.9,3.78943]
[1727356555307,4.57758,2639.9,2639.3,0.7861]
[1727356555456,4.57758,2639.9,2639.4,3.78863]
[1727356555656,0.7895,2639.9,2639.4,3.78863]
[1727356555855,0.7895,2639.9,2639.5,0.05778473]
[1727356555856,4.57762,2639.9,2639.5,0.05778473]
[1727356558470,3.78817,2639.8,2639.5,0.05778473]
[1727356561788,3.78838,2639.7,2639.5,0.05778473]
[1727356562021,3.78837,2639.7,2639.3,4.57497]
[1727356562232,3.78837,2639.7,2639.6,0.05737291]
[1727356562382,3.78837,2639.7,2639.3,4.57497]
[1727356562577,3.78837,2639.7,2639.6,0.05737291]
[1727356562811,3.78837,2639.7,2639.3,0.7861]
[1727356563034,3.78837,2639.7,2639.6,0.05737291]
[1727356563322,3.78837,2639.7,2639.6,0.05692464]
[1727356563537,3.78837,2639.7,2639.3,0.7861]
[1727356563711,3.78837,2639.7,2639.6,0.05679019]
[1727356564089,3.78837,2639.7,2639.3,0.7861]
[1727356564452,3.78828,2639.8,2639.4,0.05698621]
[1727356564453,3.78846,2639.6,2639.4,0.05698621]
[1727356564983,7.57656,2639.8,2639.4,0.05698621]
[1727356565629,7.57653,2639.8,2639.4,0.05698621]
[1727356566231,3.78833,2639.7,2639.4,0.05698621]
[1727356569185,3.78819,2639.8,2639.4,0.05698621]
[1727356570135,3.78831,2639.7,2639.4,0.05698621]
[1727356570798,4.58539,2639.5,2639.4,0.05698621]
[1727356571202,3.78877,2639.4,2638.9,4.55799]
[1727356571628,3.78891,2639.3,2638.9,4.55799]
[1727356571834,3.78877,2639.4,2638.9,5.94416984]
[1727356571991,3.78895,2639.3,2638.9,0.7686]
[1727356572700,3.78895,2639.3,2638.9,4.55804]
[1727356572902,3.78895,2639.3,2638.8,5.65368838]
[1727356573727,4.58547,2639.5,2638.8,5.65362838]
[1727356574036,4.58547,2639.5,2639.0,3.7893]
[1727356574037,3.78882,2639.4,2639.0,3.7893]
[1727356574191,0.8002,2640.0,2639.5,0.8011]
[1727356574390,4.58816,2640.0,2639.6,1.86410838]
[1727356574730,4.58522,2640.2,2639.6,1.86410838]
[1727356574931,3.78777,2640.1,2639.6,1.86410838]
[1727356575142,3.78793,2640.0,2639.6,1.86410838]
[1727356576238,0.0378134,2640.4,2639.9,4.56]
[1727356576405,0.0378134,2640.4,2640.2,1.86410838]
[1727356576733,0.0378134,2640.4,2640.2,5.65167838]
[1727356576896,0.0378134,2640.4,2640.2,3.78757]
[1727356577439,0.0378134,2640.4,2640.0,5.65186838]
[1727356577587,0.0378134,2640.4,2640.0,6.29426522]
[1727356578347,0.0378134,2640.4,2640.0,4.43015684]
[1727356578674,0.0378134,2640.4,2640.1,3.78773]
[1727356579629,0.0378134,2640.4,2640.2,3.78753]
[1727356581833,0.0378134,2640.4,2640.1,3.78773]
[1727356582134,0.0378134,2640.4,2640.1,0.52022568]
[1727356582507,0.7846,2640.3,2639.9,0.7721]
[1727356582845,3.8251234,2640.4,2640.0,0.05416304]
[1727356583844,3.78757,2640.3,2640.0,0.05416304]
[1727356583995,4.17012834,2640.2,2640.0,0.05416304]
[1727356584195,4.17012834,2640.2,2639.6,4.61017]
[1727356584196,7.57526,2640.2,2639.6,4.61017]
[1727356584537,7.57526,2640.2,2640.1,0.05377678]
[1727356584736,3.78773,2640.1,2639.7,0.0541687]
[1727356585034,3.78759,2640.2,2639.6,4.61017]
[1727356585237,3.78759,2640.2,2639.8,0.05407071]
[1727356585532,7.57529,2640.2,2639.9,0.05397272]
[1727356585741,3.78784,2640.1,2639.6,5.47483357]
[1727356585891,3.78784,2640.1,2639.6,4.61016]
[1727356586331,3.78784,2640.1,2639.7,0.0541687]
[1727356587567,3.78759,2640.2,2639.7,3.8423887]
[1727356587930,3.78759,2640.2,2639.8,4.03656572]
[1727356588126,3.78759,2640.2,2639.8,4.09063643]
[1727356588857,3.78759,2640.2,2639.8,7.87878643]
[1727356589463,3.78745,2640.3,2639.8,7.87878643]
[1727356590302,3.78745,2640.3,2639.9,0.7551]
[1727356590690,3.78745,2640.3,2640.0,0.05387475]
[1727356591479,3.8252034,2640.4,2640.0,0.05387475]
[1727356592567,7.6126034,2640.4,2640.0,0.05387475]
[1727356592905,3.78745,2640.3,2640.0,0.05387475]
[1727356593266,4.59743,2640.1,2640.0,0.05387475]
[1727356593769,3.78794,2640.0,2639.5,8.63104572]
[1727356595113,3.7881,2639.9,2639.5,4.84246572]
[1727356595293,3.78814,2639.9,2639.5,4.84246572]
[1727356596000,3.78817,2639.8,2639.5,4.84246572]
[1727356596669,3.78803,2639.9,2639.5,4.84246572]
[1727356597004,3.78799,2640.0,2639.5,4.03656572]
[1727356597209,3.78817,2639.8,2639.5,4.03656572]
[1727356597413,3.78838,2639.7,2639.3,0.8244]
[1727356597628,3.7919,2639.8,2639.0,0.7848]
[1727356597826,3.78882,2639.4,2639.0,0.7848]
[1727356597982,3.78883,2639.4,2639.0,0.7848]
[1727356602224,7.57739,2639.5,2639.0,0.7848]
[1727356602408,7.57737,2639.5,2639.0,4.57405]
[1727356602615,3.78868,2639.5,2639.0,4.57405]
[1727356602821,7.57735,2639.5,2639.0,4.57405]
[1727356603188,3.78874,2639.4,2639.0,4.57405]
[1727356603389,3.78874,2639.4,2639.0,0.7848]
[1727356605830,3.78867,2639.5,2639.0,4.57403]
[1727356606002,3.78845,2639.6,2639.0,4.57403]
[1727356606223,3.78903,2639.2,2638.8,4.81226572]
[1727356606391,3.78903,2639.2,2638.8,8.60185572]
[1727356606840,3.78874,2639.4,2638.9,3.78945]
[1727356607612,7.57758,2639.4,2638.9,3.78945]
[1727356607816,3.78874,2639.4,2638.9,3.78945]
[1727356608441,3.78891,2639.3,2638.8,9.84100929]
[1727356608637,3.78891,2639.3,2638.8,8.60184572]
[1727356608800,3.78905,2639.2,2638.8,8.60184572]
[1727356609892,3.7889,2639.3,2638.8,8.60179572]
[1727356610395,3.78904,2639.2,2638.8,8.60179572]
[1727356610628,3.78918,2639.1,2638.8,4.81226572]
[1727356610844,3.78933,2639.0,2638.5,8.62038572]
[1727356611010,0.8091,2639.1,2638.6,5.03082657]
[1727356611011,4.59827,2639.1,2638.6,5.03082657]
[1727356611397,4.59827,2639.1,2638.7,3.78967]
[1727356612035,8.38753,2639.1,2638.6,5.03089657]
[1727356612329,4.59827,2639.1,2638.6,3.78985]
[1727356612809,4.59827,2639.1,2638.7,0.0545906]
[1727356613391,3.7896,2638.8,2638.7,0.0545906]
[1727356613640,0.7587,2639.0,2638.5,3.78993]
[1727356613847,3.78949,2638.9,2638.5,3.79]
[1727356613994,0.7587,2639.0,2638.7,0.05311586]
[1727356613995,3.7896,2638.8,2638.7,0.05311586]
[1727356614191,3.7896,2638.8,2638.4,3.79008]
[1727356614428,3.78975,2638.7,2638.5,0.05332194]
[1727356614636,3.7896,2638.8,2638.3,4.6205]
[1727356614936,4.54813,2639.0,2638.6,0.05322386]
[1727356615133,4.54813,2639.0,2638.6,3.78987]
[1727356615437,3.7896,2638.8,2638.7,0.05312579]
[1727356615622,3.7896,2638.8,2638.3,0.8303]
[1727356615792,3.7896,2638.8,2638.4,0.05342003]
[1727356615998,3.7896,2638.8,2638.4,3.84356003]
[1727356616264,3.78948,2638.9,2638.4,3.84356003]
[1727356616721,1.592424,2639.0,2638.5,3.78997]
[1727356616722,4.54807,2639.0,2638.5,3.78997]
[1727356617037,4.54807,2639.0,2638.6,0.05322386]
[1727356617245,0.7587,2639.0,2638.6,3.84308386]
[1727356617447,3.78899,2639.3,2638.7,4.60503]
[1727356617448,4.55423,2639.2,2638.7,4.60503]
[1727356617739,4.55423,2639.2,2638.7,4.60496]
[1727356617901,3.78918,2639.1,2638.8,0.05302772]
[1727356618345,0.7651,2639.2,2638.8,0.05302772]
[1727356618346,4.55413,2639.2,2638.8,0.05302772]
[1727356618638,4.55413,2639.2,2638.9,0.05292967]
[1727356618807,3.78917,2639.1,2638.7,4.60494]
[1727356619015,3.78917,2639.1,2639.0,0.05291607]
[1727356619338,7.57873,2639.0,2638.7,0.8153]
[1727356619538,3.78947,2638.9,2638.7,0.8153]
[1727356619702,3.78947,2638.9,2638.5,4.5478]
[1727356619903,3.78932,2639.0,2638.5,4.5478]
[1727356620153,3.78932,2639.0,2638.5,8.33776]
[1727356620444,3.78924,2639.1,2638.6,0.07579455]
[1727356620598,3.7596,2639.4,2638.8,3.78953]
[1727356620798,3.78904,2639.2,2638.8,3.78953]
[1727356621021,3.78904,2639.2,2638.7,8.62706572]
[1727356621433,4.54842,2639.4,2638.8,3.78954]
[1727356621434,3.78891,2639.3,2638.8,3.78954]
[1727356621638,3.78891,2639.3,2638.8,5.0511399]
[1727356621852,3.78891,2639.3,2638.8,8.8406399]
[1727356622138,3.78919,2639.1,2638.8,1.2616399]
[1727356622300,3.78919,2639.1,2638.7,8.62703572]
[1727356622613,3.78903,2639.2,2638.8,3.78958]
[1727356623214,3.78918,2639.1,2638.7,8.62706572]
[1727356623410,4.54845,2639.4,2638.8,0.8826659]
[1727356623772,3.78905,2639.2,2638.8,0.8826659]
[1727356623902,3.78905,2639.2,2638.8,4.6722559]
[1727356624098,0.7596,2639.4,2638.8,0.8826659]
[1727356624341,3.78938,2639.0,2638.7,0.8008]
[1727356624840,3.78911,2639.2,2638.7,0.8008]
[1727356625042,3.78932,2639.0,2638.7,0.8008]
[1727356625246,3.78932,2639.0,2638.7,1.638862]
[1727356626746,3.78919,2639.1,2638.7,1.638862]
[1727356626914,3.78919,2639.1,2638.7,5.428602]
[1727356627116,3.78919,2639.1,2638.7,5.428532]
[1727356627339,3.78889,2639.3,2638.8,3.78951]
[1727356627340,3.78896,2639.3,2638.8,3.78951]
[1727356627571,3.78896,2639.3,2638.8,4.3324232]
[1727356627718,3.78908,2639.2,2638.9,0.05303895]
[1727356628643,3.78924,2639.1,2638.9,0.05303895]
[1727356629307,3.78924,2639.1,2638.7,5.67542772]
[1727356629508,3.78924,2639.1,2639.0,0.0529409]
[1727356629733,3.78924,2639.1,2638.7,8.62708572]
[1727356629907,3.78924,2639.1,2639.0,0.05290869]
[1727356630437,3.78924,2639.1,2638.7,8.62708572]
[1727356630601,3.78924,2639.1,2638.8,0.0531048]
[1727356630807,3.78924,2639.1,2638.7,8.62708572]
[1727356631052,3.78924,2639.1,2638.8,0.0531048]
[1727356631209,3.78924,2639.1,2638.7,0.8008]
[1727356631452,3.78924,2639.1,2638.8,0.0531048]
[1727356631678,3.78936,2639.0,2638.7,0.8008]
[1727356631987,3.78936,2639.0,2638.9,0.05300674]
[1727356632191,3.78936,2639.0,2638.8,0.0531048]
[1727356632392,3.78936,2639.0,2638.9,0.05300674]
[1727356632760,3.78945,2638.9,2638.7,0.8008]
[1727356634272,3.78945,2638.9,2638.4,4.03656572]
[1727356634481,3.78963,2638.8,2638.5,0.8025]
[1727356635284,3.78947,2638.9,2638.5,4.59251]
[1727356636269,4.60761,2639.0,2638.5,8.38244]
[1727356636465,4.60761,2639.0,2638.5,4.59243]
[1727356637352,4.60761,2639.0,2638.6,0.05336551]
[1727356637589,4.60761,2639.0,2638.6,3.84323551]
[1727356637792,4.60761,2639.0,2638.6,0.05336551]
[1727356638996,3.78941,2639.0,2638.6,3.84322551]
[1727356639517,4.59795,2639.2,2638.6,0.05336551]
[1727356639731,3.78919,2639.1,2638.8,0.8187]
[1727356640082,7.57844,2639.1,2638.9,0.05307131]
[1727356641083,3.78955,2638.9,2638.4,5.65495212]
[1727356641321,0.838724,2639.1,2638.2,3.79045]
[1727356641322,3.7899,2638.6,2638.2,3.79045]
[1727356641527,4.2478,2638.6,2638.1,4.55102]
[1727356641822,3.7899,2638.6,2638.1,4.55102]
[1727356642131,3.78975,2638.7,2638.2,3.79039]
[1727356642279,3.78975,2638.7,2638.3,3.79024]
[1727356642821,3.78975,2638.7,2638.4,0.0518754]
[1727356643188,3.78993,2638.6,2638.4,0.0518754]
[1727356643518,3.78975,2638.7,2638.2,3.79044]
[1727356643721,3.78975,2638.7,2638.5,0.05177731]
[1727356643918,4.626588,2638.7,2638.2,3.79044]
[1727356644138,3.78975,2638.7,2638.6,0.05167923]
[1727356645316,4.57872,2638.8,2638.6,0.05167923]
[1727356645501,3.78974,2638.7,2638.1,8.59270448]
[1727356645823,4.57872,2638.8,2638.3,3.79031]
[1727356646146,8.36843,2638.8,2638.3,3.79031]
[1727356646569,4.57872,2638.8,2638.3,7.58055]
[1727356646763,4.57872,2638.8,2638.3,3.79024]
[1727356646979,0.7891,2638.8,2638.4,3.79008]
[1727356647381,0.7891,2638.8,2638.4,3.79015]
[1727356647382,4.57876,2638.8,2638.4,3.79015]
[1727356648400,4.57876,2638.8,2638.3,3.79024]
[1727356648902,4.57876,2638.8,2638.4,3.79016]
[1727356650183,4.57876,2638.8,2638.2,3.79032]
[1727356650383,8.3685,2638.8,2638.3,3.79029]
[1727356650706,4.57876,2638.8,2638.3,3.79029]
[1727356650905,4.57876,2638.8,2638.4,3.79014]
[1727356651621,8.36844,2638.8,2638.4,3.79014]
[1727356651778,4.57876,2638.8,2638.4,3.79014]
[1727356652234,8.36845,2638.8,2638.4,3.79014]
[1727356652523,4.57876,2638.8,2638.4,3.79014]
[1727356653818,0.7891,2638.8,2638.5,3.79002]
[1727356655423,3.78945,2638.9,2638.5,3.79002]
[1727356655590,3.78945,2638.9,2638.5,4.59082]
[1727356655789,4.54253,2639.0,2638.6,3.78985]
[1727356655790,0.7532,2639.0,2638.6,3.78985]
[1727356655992,0.7532,2639.0,2638.7,3.78965]
[1727356656189,7.57819,2639.2,2638.7,3.78965]
[1727356656190,4.57733,2639.2,2638.7,3.78965]
[1727356656512,8.36644,2639.2,2638.7,3.78965]
[1727356656711,4.57733,2639.2,2638.7,3.78965]
[1727356657426,8.36646,2639.2,2638.7,3.78965]
[1727356657793,4.57733,2639.2,2638.8,0.04982932]
[1727356658141,4.57733,2639.2,2638.7,3.78965]
[1727356658429,4.57733,2639.2,2638.9,0.04972135]
[1727356658603,8.36645,2639.2,2638.8,0.04981941]
[1727356658787,8.36645,2639.2,2639.0,0.0496233]
[1727356658989,8.36645,2639.2,2638.9,0.04972135]
[1727356659189,8.36645,2639.2,2639.0,0.0496233]
[1727356659434,3.78917,2639.1,2639.0,0.0496233]
[1727356659592,3.78917,2639.1,2638.6,4.65303945]
[1727356659795,3.78917,2639.1,2639.0,0.0496233]
[1727356660288,3.78917,2639.1,2638.6,3.7898]
[1727356660492,4.57733,2639.2,2638.7,3.83958748]
[1727356663190,8.36649,2639.2,2638.7,3.83958748]
[1727356663826,3.78917,2639.1,2638.7,3.83958748]
[1727356665456,4.57735,2639.2,2638.8,3.78954]
[1727356665660,4.57735,2639.2,2638.9,0.04960739]
[1727356666521,8.36647,2639.2,2638.9,0.04960739]
[1727356666716,8.36647,2639.2,2638.7,3.78967]
[1727356666717,1.624947,2639.2,2639.0,0.04950934]
[1727356666951,4.57734,2639.2,2639.0,0.04950934]
[1727356667153,4.57734,2639.2,2638.8,5.65456371]
[1727356667362,4.57734,2639.2,2639.1,0.04941129]
[1727356667957,4.57734,2639.2,2638.8,5.65456371]
[1727356668145,4.57734,2639.2,2639.1,0.04941129]
[1727356668351,4.57734,2639.2,2638.8,1.86498371]
[1727356668553,4.57734,2639.2,2639.1,0.04941129]
[1727356668721,5.413964,2639.2,2638.8,1.86498371]
[1727356668918,4.57734,2639.2,2639.1,0.04941129]
[1727356669161,4.57734,2639.2,2638.8,5.65457371]
[1727356669363,3.7889,2639.3,2639.1,0.04941129]
[1727356669536,3.7889,2639.3,2638.9,4.58554]
[1727356669731,3.7889,2639.3,2639.2,0.04931325]
[1727356669938,3.7889,2639.3,2638.9,4.58554]
[1727356670137,3.7889,2639.3,2639.2,0.04931325]
[1727356670338,3.7889,2639.3,2638.9,4.58554]
[1727356670537,3.7889,2639.3,2639.2,0.04931325]
[1727356670763,4.926394,2639.3,2638.9,4.58554]
[1727356670965,3.7889,2639.3,2639.2,0.04931325]
[1727356671493,3.7889,2639.3,2638.9,4.58554]
[1727356671824,3.7889,2639.3,2639.0,0.04950934]
[1727356677254,3.7889,2639.3,2639.0,1.91449305]
[1727356677477,0.7898,2639.6,2639.2,1.86498371]
[1727356677784,4.57839,2639.6,2639.3,0.04921523]
[1727356677987,3.78862,2639.5,2639.3,0.04921523]
[1727356678282,3.78862,2639.5,2639.2,1.86498371]
[1727356678283,3.78862,2639.5,2639.4,0.0491172]
[1727356678450,3.78894,2639.3,2638.7,0.7762]
[1727356678650,7.57792,2639.3,2638.8,5.70416952]
[1727356678986,7.57792,2639.3,2638.8,1.91464952]
[1727356678987,3.78902,2639.2,2638.8,1.91464952]
[1727356680403,3.78895,2639.3,2638.8,5.70421952]
[1727356680598,3.78905,2639.2,2638.8,5.70421952]
[1727356683186,0.454305,2639.3,2638.8,5.70421952]
[1727356683386,4.243185,2639.3,2638.9,3.78943]
[1727356683816,4.243185,2639.3,2639.0,0.0494697]
[1727356685076,8.032145,2639.3,2639.0,0.0494697]
[1727356685391,3.78909,2639.2,2639.0,0.0494697]
[1727356685710,4.243205,2639.3,2638.9,3.78943]
[1727356685867,3.7889,2639.3,2639.0,0.0494697]
[1727356686629,19.88965862,2644.1,2639.3,0.8001]
[1727356686630,0.8209,2640.0,2639.3,0.8001]
[1727356686908,0.8209,2640.0,2639.0,0.0494697]
[1727356686909,3.78795,2640.0,2639.7,1.86498371]
[1727356687272,3.78771,2640.2,2639.8,0.04849234]
[1727356687473,3.78771,2640.2,2639.7,10.26742371]
[1727356687672,8.41876034,2640.2,2639.8,0.04849234]
[1727356687913,4.63105034,2640.2,2639.7,6.47919371]
[1727356688118,4.33293503,2640.1,2639.8,0.04849234]
[1727356688275,4.33293503,2640.1,2639.7,6.47919371]
[1727356688476,4.33293503,2640.1,2639.8,0.04849234]
[1727356688477,0.8142,2640.0,2639.8,0.04849234]
[1727356688797,1.7076805,2640.0,2639.6,3.78844]
[1727356688985,5.4956305,2640.0,2639.9,0.04839435]
[1727356689317,3.78838,2639.7,2639.2,5.65399371]
[1727356689519,3.78845,2639.6,2639.3,0.0483385]
[1727356689824,3.78832,2639.7,2639.3,3.78887]
[1727356690104,3.78832,2639.7,2639.4,0.04824047]
[1727356690473,3.78853,2639.6,2639.4,0.04824047]
[1727356690674,3.78832,2639.7,2639.1,4.61508]
[1727356690896,4.57107,2639.6,2639.2,0.04843652]
[1727356691213,0.54956305,2639.9,2639.5,1.86498371]
[1727356691214,4.57083,2639.8,2639.5,1.86498371]
[1727356691511,3.78838,2639.7,2639.6,0.04804445]
[1727356691921,3.78838,2639.7,2639.3,1.86498371]
[1727356692208,3.78838,2639.7,2639.6,0.04804445]
[1727356692411,3.78847,2639.6,2639.3,1.86498371]
[1727356692592,0.8166,2639.4,2639.0,3.78924]
[1727356692925,4.60534,2639.4,2639.0,3.78924]
[1727356693610,4.60534,2639.4,2638.9,4.61835]
[1727356693611,3.78923,2639.1,2638.7,3.78966]
[1727356693909,0.802,2639.0,2638.6,6.45405371]
[1727356694078,0.802,2639.0,2638.6,6.91296771]
[1727356694614,0.802,2639.0,2638.6,3.12309771]
[1727356694808,0.802,2639.0,2638.7,3.78973]
[1727356695008,0.802,2639.0,2638.8,3.78959]
[1727356695209,4.59464,2639.2,2638.6,6.91294771]
[1727356695416,0.8056,2639.2,2638.6,6.91284771]
[1727356695618,0.8056,2639.2,2638.7,3.78973]
[1727356695781,4.59467,2639.2,2638.7,3.78973]
[1727356696321,3.78917,2639.1,2638.7,3.78973]
[1727356696636,3.78917,2639.1,2638.6,6.45405371]
[1727356697578,4.59464,2639.2,2638.7,3.78971]
[1727356698011,3.7892,2639.1,2638.6,5.65479371]
[1727356698314,3.7892,2639.1,2638.7,3.78973]
[1727356698511,4.59464,2639.2,2638.7,3.78965]
[1727356698711,4.59464,2639.2,2638.6,1.86498371]
[1727356698892,8.38379,2639.2,2638.7,3.78973]
[1727356699098,4.59464,2639.2,2638.7,3.78973]
[1727356699275,4.59464,2639.2,2638.7,7.57946]
[1727356699612,0.8056,2639.2,2638.9,3.78944]
[1727356699787,0.8056,2639.2,2638.8,3.78958]
[1727356700181,4.59464,2639.2,2638.8,3.78958]
[1727356700817,0.8056,2639.2,2638.9,3.78939]
[1727356700979,0.8056,2639.2,2638.8,5.65451371]
[1727356701179,0.8056,2639.2,2638.9,3.78941]
[1727356701388,0.8056,2639.2,2638.8,5.65451371]
[1727356701593,0.8056,2639.2,2638.9,3.78944]
[1727356702014,0.8056,2639.2,2638.8,3.78953]
[1727356702383,0.8056,2639.2,2638.9,3.78944]
[1727356702782,0.8056,2639.2,2639.0,0.04898427]
[1727356704940,1.643928,2639.2,2638.4,4.58526]
[1727356705150,0.7719,2638.6,2638.5,0.66835553]
[1727356705436,0.7719,2638.6,2638.5,1.05521176]
[1727356705640,0.7719,2638.6,2638.5,0.0494746]
[1727356706347,0.7719,2638.6,2638.2,3.79037]
[1727356706553,0.7719,2638.6,2638.3,0.04967079]
[1727356707343,0.7719,2638.6,2638.3,3.83993079]
[1727356708044,0.7719,2638.6,2638.3,0.04967079]
[1727356708737,4.56187,2638.6,2638.3,0.04967079]
[1727356708939,9.18699,2638.6,2638.1,3.79053]
[1727356709155,3.79003,2638.5,2638.4,0.04957269]
[1727356709308,0.8301,2638.4,2637.7,4.56492029]
[1727356709509,4.62038,2638.4,2637.8,3.84106138]
[1727356709806,4.62038,2638.4,2637.9,3.79087]
[1727356710007,0.8301,2638.4,2637.9,3.79087]
[1727356710347,0.8301,2638.4,2638.0,0.050624]
[1727356710348,3.79041,2638.3,2638.0,0.050624]
[1727356710557,3.79041,2638.3,2637.8,3.79094]
[1727356710852,0.8301,2638.4,2638.1,0.05052588]
[1727356711013,0.8301,2638.4,2637.9,3.79089]
[1727356711221,0.8301,2638.4,2638.2,0.05042777]
[1727356711445,0.8301,2638.4,2637.9,7.58171]
[1727356711633,0.8301,2638.4,2638.3,0.05032967]
[1727356711836,0.8301,2638.4,2638.1,3.79059]
[1727356712053,4.61389,2638.6,2638.3,0.05032967]
[1727356712227,3.79004,2638.5,2638.2,0.05042777]
[1727356712544,4.630411,2638.5,2638.3,0.05032967]
[1727356712746,4.61392,2638.6,2638.1,3.79059]
[1727356712949,4.61392,2638.6,2638.2,0.05042777]
[1727356713156,5.754294,2638.6,2638.2,0.05042777]
[1727356713719,3.79004,2638.5,2638.2,0.05042777]
[1727356714845,3.79004,2638.5,2638.0,4.59353]
[1727356715049,3.79004,2638.5,2638.1,3.79058]
[1727356715444,3.79004,2638.5,2638.2,0.05070527]
[1727356716822,3.79004,2638.5,2638.0,4.59353]
[1727356717156,7.58015,2638.5,2638.0,4.59353]
[1727356717343,7.58015,2638.5,2638.1,0.05080338]
[1727356717747,3.79004,2638.5,2638.1,0.05080338]
[1727356718080,7.58019,2638.5,2638.1,0.05080338]
[1727356718733,7.58017,2638.5,2638.1,0.05080338]
[1727356718934,3.79004,2638.5,2638.1,0.05080338]
[1727356719131,3.79025,2638.4,2638.1,0.05080338]
[1727356721041,0.824,2638.6,2638.1,4.30581672]
[1727356721234,0.824,2638.6,2638.1,4.55757055]
[1727356721714,4.61396,2638.6,2638.1,8.34810055]
[1727356721866,3.78981,2638.7,2638.2,3.79039]
[1727356722027,7.57963,2638.7,2638.3,1.21384906]
[1727356722227,3.78981,2638.7,2638.3,1.26445623]
[1727356722726,3.78981,2638.7,2638.3,0.05060717]
[1727356722925,3.78981,2638.7,2638.1,8.29735717]
[1727356723163,3.78981,2638.7,2638.2,0.05070527]
[1727356723563,3.78996,2638.6,2638.2,0.05070527]